Cogmind - Beta 12 @@@ ROGUE MODE // 2023.05.30 @ 02:49:25 Player: snowphil Result: Destroyed by B-75 Beast with Heavy Plasma Cannon Performance ------------- Evolutions (3) 1500 Regions Visited (12) 2400 Robots Destroyed (106) 530 Value Destroyed (3503) 3503 Prototype IDs (45) 900 Alien Tech Used (0) 0 Bonus (913) 913 TOTAL SCORE: 9746 Bonus ------- High Alert Combat Kills 43 Follower Combat Kills 279 Aligned with FarCom 300 Met Data Miner 300 Friendly Fire -9 Cogmind --------- Core Integrity 0/700 Matter 166/300 Energy 139/160 System Corruption 1% Temperature Cool (10) Movement Treading (165) Location -6/Proximity Caves Parts ------- > --- POWER (1) -------- Light Nuclear Core > --- PROPULSION (4) --- Armored Treads Medium Treads Carbon-fiber Leg Armored Leg > --- UTILITY (6) ------ Advanced Heat Sink Large Storage Unit Advanced Visual Processing Unit Improved Signal Interpreter Hardlight Generator Corruption Screen > --- WEAPON (2) ------- Bore Cannon > --- INVENTORY (15) --- Light Nuclear Core Superbattery (1500) Makeshift Salvage Targeting Computer Makeshift ECM Suite Advanced ECM Suite Layered Medium Armor Plating Component Analysis Suite Arc Thrower Beamcaster Beamcaster Improved Proton Missile Launcher Heavy Flail Power Maul Peak State ------------ > --- POWER ------------ Makeshift Power Source > --- PROPULSION ------- Carbon-fiber Leg Carbon-fiber Leg Carbon-fiber Leg Improved Carbon-fiber Leg > --- UTILITY ---------- Advanced Heat Sink Large Storage Unit Improved Signal Interpreter Hardened Heavy Armor Plating Corruption Screen > --- WEAPON ----------- Precision Shock Rifle Gauss Rifle > --- INVENTORY -------- Light Nuclear Core Light Angular Momentum Engine Carbon-fiber Leg Gravmag System Antigrav System Superbattery Armor Integrity Analyzer Advanced ECM Suite Improved Propulsion Shielding Hardened Heavy Armor Plating Insulated Plating Component Analysis Suite Mini Grenade Launcher Power Maul [Rating: 53] Favorites ----------- Power Light Nuclear Core Engine Ion Engine Power Core Light Nuclear Core Propulsion Carbon-fiber Leg Treads Medium Treads Leg Carbon-fiber Leg Hover Unit Antigrav System Flight Unit VTOL Module Utility Medium Storage Unit Device Sensor Array Storage Medium Storage Unit Processor Improved Signal Interpreter Hackware System Shield Protection Light Armor Plating Weapon Precision Shock Rifle Energy Gun Precision Shock Rifle Energy Cannon Advanced Beam Cannon Ballistic Gun Gauss Rifle Ballistic Cannon Light Cannon Launcher Mini Grenade Launcher Impact Weapon Maul Build | -11 -10 -10 -9 -9 -9 -8 -8 -7 -7 -7 -7 -6 ------- Run | Jun Mat Min Mat Min Exi Min Mat Fac Low Low Dat Pro Slots Evolved 6 | . . . 2 . . . 2 2 . . . . Power . | . . . . . . . . . . . . . Propulsion 2 | . . . . . . . 2 . . . . . Utility 4 | . . . 2 . . . . 2 . . . . Weapon . | . . . . . . . . . . . . . Parts Attached 183 | 6 24 14 33 1 1 7 38 20 8 23 . 8 Power 12 | 1 2 1 3 . . . 2 . 1 2 . . Engine 9 | 1 1 1 3 . . . 1 . 1 1 . . Core 3 | . 1 . . . . . 1 . . 1 . . Reactor . | . . . . . . . . . . . . . Propulsion 31 | 2 5 2 2 . . 1 6 5 1 5 . 2 Treads 3 | . . . . . . . 1 . . 1 . 1 Leg 25 | 2 5 2 2 . . 1 4 5 1 2 . 1 Wheel . | . . . . . . . . . . . . . Hover 2 | . . . . . . . . . . 2 . . Flight 1 | . . . . . . . 1 . . . . . Utility 79 | 1 13 9 20 1 . 2 7 11 3 9 . 3 Device 32 | . 6 5 13 . . . . 2 2 3 . 1 Storage 5 | 1 1 . 1 . . . . 1 . 1 . . Processor 8 | . 1 . 1 . . 1 2 1 . 1 . 1 Hackware 1 | . . . . . . . . . . . . 1 Protection 33 | . 5 4 5 1 . 1 5 7 1 4 . . Artifact . | . . . . . . . . . . . . . Weapon 61 | 2 4 2 8 . 1 4 23 4 3 7 . 3 Energy Gun 16 | 1 . 1 . . . 1 6 2 1 3 . 1 Energy Cannon 2 | . . 1 . . . . 1 . . . . . Ballistic Gun 15 | 1 . . 4 . . . 7 1 . 2 . . Ballistic Cannon 7 | . 4 . . . . . 1 . . . . 2 Launcher 12 | . . . . . 1 3 5 1 1 1 . . Special Weapon . | . . . . . . . . . . . . . Impact Weapon 9 | . . . 4 . . . 3 . 1 1 . . Slashing Weapon . | . . . . . . . . . . . . . Piercing Weapon . | . . . . . . . . . . . . . Special Melee Weapon . | . . . . . . . . . . . . . Unidentified Prototypes 2 | . . . . . . . 2 . . . . . Corrupted Parts 1 | . . . . . . . 1 . . . . . System Corruption 12 | . . . . . . . 12 . . . . . Parts Lost 30 | . 1 1 3 . . 2 5 2 1 15 . . Power 4 | . . . 1 . . . 1 . . 2 . . Propulsion 13 | . 1 . 1 . . 1 3 1 . 6 . . Utility 8 | . . 1 1 . . 1 . . 1 4 . . Weapon 5 | . . . . . . . 1 1 . 3 . . Highest Loss Streak 9 | . 1 1 1 . . 2 3 2 1 9 . . To Critical Strikes . | . . . . . . . . . . . . . Average Slot Usage (%) 88 | . 97 99 99 100 100 100 98 93 91 54 53 72 Engine 6 | . 8 14 11 11 11 11 7 . 6 . . . Core 2 | . 5 . . . . . 1 7 . 5 7 7 Leg 23 | . 27 28 21 22 22 22 32 29 30 9 7 10 Device 5 | . 3 1 10 11 11 11 . 3 4 7 7 8 Storage 9 | . 14 14 11 11 11 11 9 7 7 8 7 7 Processor 10 | . 1 . 11 11 11 11 9 10 15 15 15 22 Protection 10 | . 7 12 11 11 11 11 17 17 9 . . . Energy Gun 6 | . 2 7 11 11 11 3 7 11 2 1 . 1 Ballistic Gun 3 | . 2 . 8 . . . 5 3 7 . . . Ballistic Cannon 3 | . 23 19 . . . . . . . . . . Launcher 1 | . . . . . . 7 . . 4 . . . Impact Weapon 1 | . . . 1 11 11 11 1 . . . . . Naked Turns . | . . . . . . . . . . . . . Heaviest Build 56 | 13 29 33 36 27 27 28 37 56 56 53 26 40 Greatest Support 63 | 20 26 30 30 28 28 28 51 63 63 63 28 48 Greatest Overweight (x) 13 | . 1 1 1 . . . 1 1 . 13 . 1 Average Overweight (x) . | . . . . . . . . . . . . . Largest Inventory Capacity 15 | 8 10 10 10 10 10 10 10 15 15 15 15 15 Average Capacity 11 | 7 9 10 10 10 10 10 10 10 15 15 15 15 Most Carried 15 | 7 10 10 10 10 10 10 10 13 15 15 14 15 Average Carried 10 | 3 9 9 9 9 9 9 9 9 14 12 14 14 Final Capacity 15 | 8 10 10 10 10 10 10 10 15 15 15 15 15 Final Carried 15 | 4 10 10 9 10 10 9 10 13 15 14 14 13 Class Distribution -------------------- 53% | Mutant 33% | Scavenger-Mutant 7% | Commander-Mutant 4% | Assassin Dominant Class ---------------- Mutant | -10/Materials Scavenger-Mutant | -10/Mines Scavenger-Mutant | -9/Materials Scavenger-Mutant | -9/Mines Scavenger-Mutant | -9/Exiles Assassin | -8/Mines Mutant | -8/Materials Mutant | -7/Factory Commander-Mutant | -7/Lower Caves Mutant | -7/Lower Caves Mutant | -7/Data Miner Scavenger-Mutant | -6/Proximity Caves Resources | -11 -10 -10 -9 -9 -9 -8 -8 -7 -7 -7 -7 -6 ----------- Run | Jun Mat Min Mat Min Exi Min Mat Fac Low Low Dat Pro Matter Collected 2942 | 204 551 107 351 34 . 114 778 69 343 333 . 58 Remotely . | . . . . . . . . . . . . . Salvage Created 3548 | . 593 213 622 53 . 71 1079 237 220 454 . 6 Parts 207 | . 18 9 43 2 . 15 85 11 9 12 . 3 Haulers Intercepted 1 | . . . . . . . 1 . . . . . Recyclers Shooed . | . . . . . . . . . . . . . Parts Field Recycled 57 | . 22 22 13 . . . . . . . . . Retrieved Matter 309 | . 116 98 95 . . . . . . . . . Parts Self-Destructed 41 | . . . . . . . . . 17 20 . 4 Prevented 5 | . . . . . . . . . 3 2 . . Kills | -11 -10 -10 -9 -9 -9 -8 -8 -7 -7 -7 -7 -6 ------- Run | Jun Mat Min Mat Min Exi Min Mat Fac Low Low Dat Pro Combat Hostiles Destroyed 87 | . 13 5 13 2 . 9 23 4 5 12 . 1 Guns 36 | . 3 3 13 1 . . 8 2 4 1 . 1 Cannons 14 | . 10 2 . . . . 2 . . . . . AOE 32 | . . . . 1 . 9 12 2 . 8 . . Classes Destroyed 18 | . 3 1 2 1 . 1 5 1 2 1 . 1 Worker 4 | . . . . . . 1 2 1 . . . . Builder 3 | . . . . . . . 3 . . . . . Tunneler 1 | . . . . . . . 1 . . . . . Hauler 1 | . . . . . . . 1 . . . . . Recycler 4 | . 3 . . . . . 1 . . . . . Mechanic 1 | . . . 1 . . . . . . . . . Drone 1 | . . . . . . . . . . . . 1 Watcher 5 | . . . 1 . . . 3 1 . . . . Swarmer 24 | . 3 . . . . 9 8 . 3 1 . . Grunt 38 | . 10 4 9 1 . . 7 2 . 5 . . Brawler 4 | . . . . . . . . . 1 3 . . Duelist 2 | . . . . 1 . . . . . 1 . . Sentry 11 | . . 1 4 . . . 5 . . 1 . . Specialist 2 | . . . . . . . 2 . . . . . Hunter 1 | . . . . . . . 1 . . . . . Programmer 2 | . . . . . . . . 2 . . . . Behemoth 1 | . . . . . . . . . . 1 . . Mutant 1 | . . . . . . . . . 1 . . . Best Kill Streak 10 | . 5 4 4 1 . 3 10 2 3 5 . 1 Combat Bots Only 5 | . 3 4 4 1 . 3 5 2 3 5 . 1 Max Kills in Single Turn 4 | . 1 1 2 1 . 3 4 2 1 4 . 1 Gunslinging 1 | . . . 1 . . . . . . . . . Exploded 4 | . . . . 1 . 3 3 1 . 4 . . Melee . | . . . . . . . . . . . . . Uniques/NPCs Destroyed . | . . . . . . . . . . . . . Combat | -11 -10 -10 -9 -9 -9 -8 -8 -7 -7 -7 -7 -6 -------- Run | Jun Mat Min Mat Min Exi Min Mat Fac Low Low Dat Pro Damage Taken 6405 | . 594 171 693 35 . 155 1067 623 670 2176 . 221 Core 969 | . 37 43 68 35 . . 70 30 123 506 . 57 Absorbed by Shields 32 | . . . . . . . . . . . . 32 Redirected to Shielding 102 | . . . . . . . . . . 102 . . Regen/Repaired (Parts) 204 | . 78 . . . . . 126 . . . . . Core Remaining (%) 82 | 100 . 68 . . . 74 87 . . . . . Volleys Fired 268 | . 57 11 33 8 . 15 57 29 17 24 . 17 Largest 2 | . 2 2 2 1 . 1 2 2 2 2 . 1 Hottest 112 | . 70 110 98 75 . 75 112 110 83 83 . 75 Shots Fired 449 | . 114 22 66 8 . 15 100 45 36 26 . 17 Gun 293 | . 38 5 66 8 . 7 72 45 36 15 . 1 Cannon 130 | . 76 17 . . . . 21 . . . . 16 Launcher 26 | . . . . . . 8 7 . . 11 . . Special . | . . . . . . . . . . . . . Kinetic 242 | . 95 12 33 . . . 52 7 18 9 . 16 Thermal 95 | . 19 10 33 8 . 7 17 . . . . 1 Explosive 24 | . . . . . . 8 5 . . 11 . . Electromagnetic 88 | . . . . . . . 26 38 18 6 . . Robot Hit Streak 12 | . 8 5 7 2 . 5 11 12 11 9 . 5 Robot Miss Streak 6 | . 6 3 3 2 . 3 4 1 3 3 . 2 Penetration Max 1 | . . . . . . . 1 . 1 . . . Secondary Targets 2 | . . . 1 . . . . . 1 . . . Max Gunslinging Chain 1 | . . . 1 . . . . . 1 . . . Shots Hit Robots 291 | . 60 13 43 7 . 5 61 35 28 26 . 13 Core Hits 161 | . 22 6 20 2 . 11 53 17 6 23 . 1 Critical Kills 1 | . . . . . . . . . . 1 . . Critical Parts Destroyed 7 | . . . . . . . . . . 4 . 3 Critical Strikes 21 | . 4 1 1 . . . 1 1 . 5 . 8 Burn 1 | . . . 1 . . . . . . . . . Destroy 9 | . . . . . . . . . . 1 . 8 Blast 5 | . 4 1 . . . . . . . . . . Corrupt 2 | . . . . . . . 1 1 . . . . Smash 4 | . . . . . . . . . . 4 . . Melee Attacks 48 | . . . 15 6 . . 4 . 7 16 . . Impact 48 | . . . 15 6 . . 4 . 7 16 . . Slashing . | . . . . . . . . . . . . . Piercing . | . . . . . . . . . . . . . Sneak Attacks 1 | . . . 1 . . . . . . . . . Combat Hostiles . | . . . . . . . . . . . . . Follow-up Attacks . | . . . . . . . . . . . . . Damage Inflicted 8489 | . 930 277 859 277 . 681 2288 866 560 1499 . 252 Guns 3327 | . 318 102 755 86 . 83 1035 377 382 167 . 22 Cannons 1249 | . 612 175 . . . . 232 . . . . 230 Explosions 3098 | . . . . 93 . 598 1021 489 . 897 . . Melee 815 | . . . 104 98 . . . . 178 435 . . Ramming . | . . . . . . . . . . . . . Kinetic 2580 | . 741 157 306 . . . 713 135 220 78 . 230 Thermal 1771 | . 189 120 449 179 . 105 218 489 . . . 22 Explosive 2328 | . . . . . . 576 855 . . 897 . . Electromagnetic 995 | . . . . . . . 502 242 162 89 . . Impact 815 | . . . 104 98 . . . . 178 435 . . Slashing . | . . . . . . . . . . . . . Piercing . | . . . . . . . . . . . . . Highest Corruption 14 | . . . . . . . 14 1 1 1 1 1 Average Corruption 1 | . . . . . . . 4 1 1 1 1 1 Corruption Purged . | . . . . . . . . . . . . . Corruption Blocked 5 | . . . . . . . . 5 . . . . Effects 76 | . . . . . . . 32 6 17 19 . 2 Message Errors 12 | . . . . . . . 2 . 3 6 . 1 Matter Fused 24 | . . . . . . . 13 2 4 5 . . Heat Flow Errors 12 | . . . . . . . 4 1 3 4 . . Energy Discharges 13 | . . . . . . . 5 2 4 2 . . Parts Rejected 1 | . . . . . . . . . . 1 . . Data Loss (minor) 7 | . . . . . . . 4 1 1 . . 1 Data Loss (major) 2 | . . . . . . . 1 . . 1 . . Misfires 4 | . . . . . . . 2 . 2 . . . Weapon Failures 1 | . . . . . . . 1 . . . . . Overload Shots . | . . . . . . . . . . . . . Overflow Damage 365 | . . . 64 19 . 36 . 120 36 90 . . Projectiles . | . . . . . . . . . . . . . Explosions 156 | . . . . . . 36 . 120 . . . . Melee 209 | . . . 64 19 . . . . 36 90 . . Knockbacks 17 | . 10 . 1 2 . . 1 . . 3 . . Impact 6 | . . . 1 2 . . . . . 3 . . Kinetic 11 | . 10 . . . . . 1 . . . . . Secondary . | . . . . . . . . . . . . . Self-Inflicted Damage 318 | . . . . . . 70 90 133 . 25 . . Shots 8 | . . . . . . 2 2 3 . 1 . . Rammed . | . . . . . . . . . . . . . Targets Rammed . | . . . . . . . . . . . . . Kicked . | . . . . . . . . . . . . . Crushed . | . . . . . . . . . . . . . Highest Temperature 383 | . 171 336 258 102 . 136 349 225 383 203 . . Average Temperature 84 | . 46 128 82 39 . 52 81 96 144 59 . . Received Heat Transfer 1604 | . 249 81 321 . . . 243 18 . 642 . 50 Effects 1 | . . . . . . . . . 1 . . . Shutdowns 1 | . . . . . . . . . 1 . . . Siege Activations . | . . . . . . . . . . . . . Robots Corrupted 2 | . . . . . . . 2 . . . . . Combat Hostiles 1 | . . . . . . . 1 . . . . . Parts Fried 13 | . . . . . . . 4 3 4 2 . . Impact Corruptions 10 | . . . 2 1 . . . . 2 5 . . Robots Melted . | . . . . . . . . . . . . . Combat Hostiles . | . . . . . . . . . . . . . Parts Melted 1 | . 1 . . . . . . . . . . . Heat Transferred 2677 | . 425 222 851 298 . 198 396 250 . . . 37 Parts Sabotaged . | . . . . . . . . . . . . . Parts Stolen . | . . . . . . . . . . . . . Parts Stripped . | . . . . . . . . . . . . . Power Chain Reactions 6 | . . . . . . . 4 2 . . . . Missiles Intercepted . | . . . . . . . . . . . . . Alert | -11 -10 -10 -9 -9 -9 -8 -8 -7 -7 -7 -7 -6 ------- Run | Jun Mat Min Mat Min Exi Min Mat Fac Low Low Dat Pro Peak Influence 480 | . 168 57 282 232 . 387 480 211 . . . . Initial 182 | . . 27 21 106 . . 51 182 . . . . Average 141 | . 86 19 96 84 . 234 255 130 . . . . Maximum Alert Level 2 | . . . 1 1 . 1 2 1 . . . . Low Security (%) 69 | 100 100 100 77 95 . 42 31 74 . . . . Level 1 23 | . . . 22 4 . 57 40 25 . . . . Level 2 6 | . . . . . . . 28 . . . . . Level 3 . | . . . . . . . . . . . . . Level 4 . | . . . . . . . . . . . . . Level 5 . | . . . . . . . . . . . . . High Security . | . . . . . . . . . . . . . Max Security . | . . . . . . . . . . . . . Squads Dispatched 19 | . 2 . 2 1 . . 8 5 . 1 . . Investigation 3 | . 1 . 1 . . . 1 . . . . . Extermination 2 | . . . . . . . . 2 . . . . Reinforcement 8 | . 1 . 1 . . . 4 2 . . . . Assault 3 | . . . . 1 . . . 1 . 1 . . Garrison 3 | . . . . . . . 3 . . . . . Intercept . | . . . . . . . . . . . . . Searches Triggered . | . . . . . . . . . . . . . Construction Impeded . | . . . . . . . . . . . . . Haulers Reinforced . | . . . . . . . . . . . . . Active Scanning Responses . | . . . . . . . . . . . . . Cargo Convoy Interrupts 1 | . . . . . . . . 1 . . . . Stealth | -11 -10 -10 -9 -9 -9 -8 -8 -7 -7 -7 -7 -6 --------- Run | Jun Mat Min Mat Min Exi Min Mat Fac Low Low Dat Pro Distress Signals 7 | . 1 . 4 . . . 2 . . . . . Communications Jammed . | . . . . . . . . . . . . . Distress Signals . | . . . . . . . . . . . . . Times Spotted 151 | . 26 7 34 2 . 12 32 7 10 18 . 3 Peak Tracking Total 14 | . 4 4 7 2 . 4 6 2 4 14 . 2 Tactical Retreats 17 | . 3 . 6 1 . 2 2 . . 3 . . Traps | -11 -10 -10 -9 -9 -9 -8 -8 -7 -7 -7 -7 -6 ------- Run | Jun Mat Min Mat Min Exi Min Mat Fac Low Low Dat Pro Traps Triggered 5 | . 1 . 1 . . . 1 2 . . . . Indirectly . | . . . . . . . . . . . . . Trap Hack Attempts . | . . . . . . . . . . . . . Triggered . | . . . . . . . . . . . . . Disarmed . | . . . . . . . . . . . . . Reprogrammed . | . . . . . . . . . . . . . Reused . | . . . . . . . . . . . . . Traps Extracted . | . . . . . . . . . . . . . Installed . | . . . . . . . . . . . . . Triggered 2 | . . . . . . . . 1 . 1 . . Machines | -11 -10 -10 -9 -9 -9 -8 -8 -7 -7 -7 -7 -6 ---------- Run | Jun Mat Min Mat Min Exi Min Mat Fac Low Low Dat Pro Machines Disabled 29 | . 1 1 2 3 . 7 4 10 1 . . . Max in Single Turn 10 | . 1 1 1 2 . 5 2 10 1 . . . Machines Repaired . | . . . . . . . . . . . . . Machines Sabotaged . | . . . . . . . . . . . . . Overloaded Fab Kills . | . . . . . . . . . . . . . Hacking | -11 -10 -10 -9 -9 -9 -8 -8 -7 -7 -7 -7 -6 --------- Run | Jun Mat Min Mat Min Exi Min Mat Fac Low Low Dat Pro Machines Accessed 39 | . 10 . 8 . 1 . 10 5 1 . 4 . Terminals 22 | . 7 . 7 . . . 7 1 . . . . Fabricators 1 | . . . . . . . . 1 . . . . Repair Stations 4 | . 1 . 1 . . . 2 . . . . . Recycling Units 3 | . 2 . . . . . 1 . . . . . Scanalyzers 3 | . . . . . . . . 3 . . . . Garrison Access . | . . . . . . . . . . . . . Total Hacks 141 | . 30 . 30 . 1 . 31 17 1 . 31 . Successful 94 | . 16 . 13 . 1 . 19 13 1 . 31 . Failed 47 | . 14 . 17 . . . 12 4 . . . . Catastrophic 7 | . 1 . 4 . . . 1 1 . . . . Database Lockouts . | . . . . . . . . . . . . . Manual 58 | . 15 . 20 . 1 . 21 1 . . . . Terminals 72 | . 20 . 28 . . . 22 2 . . . . Fabricators 1 | . . . . . . . . 1 . . . . Repair Stations 12 | . 3 . 2 . . . 7 . . . . . Recycling Units 9 | . 7 . . . . . 2 . . . . . Scanalyzers 14 | . . . . . . . . 14 . . . . Garrison Access . | . . . . . . . . . . . . . Terminal Hacks 53 | . 5 . 8 . 1 . 6 1 1 . 31 . Record 12 | . . . 1 . . . . . . . 11 . Part Schematic 12 | . . . . . . . . . . . 12 . Robot Schematic 5 | . . . . . . . . . . . 5 . Prototype ID Bank 10 | . 1 . 4 . . . 2 . . . 3 . Open Door 1 | . . . . . . . . . 1 . . . Level Access Points 1 | . . . . . . . 1 . . . . . Branch Access Points 4 | . 2 . 1 . . . 1 . . . . . Alert Level 5 | . 1 . 2 . . . 1 1 . . . . Locate Traps 2 | . 1 . . . . . 1 . . . . . EX-Prototype ID Bank 1 | . . . . . 1 . . . . . . . Fabricator Hacks . | . . . . . . . . . . . . . Repair Station Hacks 9 | . 3 . 1 . . . 5 . . . . . Scan Component 4 | . 1 . . . . . 3 . . . . . Repair 3 | . 1 . . . . . 2 . . . . . Refit 2 | . 1 . 1 . . . . . . . . . Recycling Unit Hacks 3 | . 2 . . . . . 1 . . . . . Retrieve Components 3 | . 2 . . . . . 1 . . . . . Scanalyzer 12 | . . . . . . . . 12 . . . . Insert Component 6 | . . . . . . . . 6 . . . . Analyze 6 | . . . . . . . . 6 . . . . Garrison Access Hacks . | . . . . . . . . . . . . . Unauthorized Hacks 17 | . 6 . 4 . . . 7 . . . . . Terminals 14 | . 4 . 4 . . . 6 . . . . . Botnet 14 | . 4 . 4 . . . 6 . . . . . Fabricators . | . . . . . . . . . . . . . Repair Stations . | . . . . . . . . . . . . . Recycling Units 3 | . 2 . . . . . 1 . . . . . Reject 3 | . 2 . . . . . 1 . . . . . Scanalyzers . | . . . . . . . . . . . . . Garrison Access . | . . . . . . . . . . . . . Data Cores Recovered . | . . . . . . . . . . . . . Used . | . . . . . . . . . . . . . Hacking Detections 31 | . 8 . 8 . . . 10 5 . . . . Full Trace Events 5 | . 2 . 1 . . . 2 . . . . . Feedback Events . | . . . . . . . . . . . . . Feedback Blocked . | . . . . . . . . . . . . . Robot Schematics Acquired 5 | . . . . . . . . . . . 5 . Robots Built . | . . . . . . . . . . . . . Authchips . | . . . . . . . . . . . . . Time . | . . . . . . . . . . . . . Total Robot Build Rating . | . . . . . . . . . . . . . Part Schematics Acquired 17 | . . . . . . . . 5 . . 12 . Parts Built . | . . . . . . . . . . . . . Authchips . | . . . . . . . . . . . . . Time . | . . . . . . . . . . . . . Total Part Build Rating . | . . . . . . . . . . . . . Parts Repaired 3 | . 1 . . . . . 2 . . . . . Time 90 | . 32 . . . . . 58 . . . . . Parts Recycled . | . . . . . . . . . . . . . Recycled Matter . | . . . . . . . . . . . . . Retrieved Matter . | . . . . . . . . . . . . . Retrieved Components 20 | . 11 . . . . . 9 . . . . . Parts Scanalyzed 6 | . . . . . . . . 6 . . . . Part Schematics Acquired 5 | . . . . . . . . 5 . . . . Parts Damaged . | . . . . . . . . . . . . . Bothacking | -11 -10 -10 -9 -9 -9 -8 -8 -7 -7 -7 -7 -6 ------------ Run | Jun Mat Min Mat Min Exi Min Mat Fac Low Low Dat Pro Used RIF Installer . | . . . . . . . . . . . . . Robots Hacked . | . . . . . . . . . . . . . Non-combat . | . . . . . . . . . . . . . Combat . | . . . . . . . . . . . . . Robot Hacks Applied . | . . . . . . . . . . . . . Relay Couplers Released 4 | . . . . . . . . 4 . . . . Programmers 4 | . . . . . . . . 4 . . . . Fabnet Peak Effective % . | . . . . . . . . . . . . . Robots Rewired 6 | . . . . . . . . . 4 2 . . Allies Hacked . | . . . . . . . . . . . . . Hacks Repelled . | . . . . . . . . . . . . . Allies | -11 -10 -10 -9 -9 -9 -8 -8 -7 -7 -7 -7 -6 -------- Run | Jun Mat Min Mat Min Exi Min Mat Fac Low Low Dat Pro Total Allies 8 | . . . . 1 . . . . 4 2 . 1 Largest Group 4 | . . . . 1 1 1 1 . 4 3 2 3 Highest-Rated Group 128 | . . . . 31 31 31 31 . 124 93 32 128 Highest-Rated Ally 96 | . . . . 31 31 31 31 . 31 31 16 96 Total Orders . | . . . . . . . . . . . . . Ally Attacks 85 | . . . . . . 12 9 . 40 7 . 17 Total Damage 1560 | . . . . . . 63 172 . 762 132 . 431 Kills 9 | . . . . . . 2 1 . 4 1 . 1 Allies Corrupted . | . . . . . . . . . . . . . Allies Melted . | . . . . . . . . . . . . . Intel | -11 -10 -10 -9 -9 -9 -8 -8 -7 -7 -7 -7 -6 ------- Run | Jun Mat Min Mat Min Exi Min Mat Fac Low Low Dat Pro Robot Analysis Total . | . . . . . . . . . . . . . Derelict Logs Recovered 6 | . . 2 . 2 . . . . . 2 . . Drone Launches . | . . . . . . . . . . . . . Drone Recoveries . | . . . . . . . . . . . . . Exploration | -11 -10 -10 -9 -9 -9 -8 -8 -7 -7 -7 -7 -6 ------------- Run | Jun Mat Min Mat Min Exi Min Mat Fac Low Low Dat Pro Turns Passed 14381 | 83 1304 874 1761 676 297 882 2151 1546 1782 2603 128 294 Spaces Moved 8937 | 46 742 597 1099 505 246 655 1129 1084 1348 1270 81 135 Core 33 | 17 . . . . . . . . . 16 . . Treads 453 | . . . . . . . . . . 280 81 92 Legs 8451 | 29 742 597 1099 505 246 655 1129 1084 1348 974 . 43 Wheels . | . . . . . . . . . . . . . Hover . | . . . . . . . . . . . . . Flight . | . . . . . . . . . . . . . Fastest Speed 50 | 50 120 120 120 120 120 120 112 112 120 120 160 120 Average Speed 132 | 94 126 125 123 120 120 120 120 122 120 190 160 164 Slowest Speed 700 | 120 190 190 190 120 120 120 190 190 120 700 160 240 Overloaded Moves . | . . . . . . . . . . . . . Propulsion Burnouts . | . . . . . . . . . . . . . Robots Hopped . | . . . . . . . . . . . . . Cave-ins Triggered . | . . . . . . . . . . . . . Exploration Rate (%) 69 | 5 99 96 72 98 61 101 65 23 99 99 68 23 Regions Visited 12 Branch Regions 8 Pre-discovered Areas 3 | . . 1 . 1 . . . . . . 1 . Known Exits Taken 10 | . 1 . 1 1 1 1 1 1 1 1 1 . Unknown Exits Taken 2 | 1 . 1 . . . . . . . . . . Scrap Searched 14 | . . 1 . 3 . 2 . . 5 1 . 2 Spaces Dug 21 | . . . 14 3 . . 4 . . . . . Terrain Destroyed 278 | . . . 14 21 . 81 71 28 1 60 . 2 Melee 21 | . . . 14 3 . . 4 . . . . . Projectile 2 | . . . . . . . . . . . . 2 AOE 254 | . . . . 18 . 81 67 28 . 60 . . Terrain Rammed . | . . . . . . . . . . . . . Walls Destroyed . | . . . . . . . . . . . . . Machines Disabled . | . . . . . . . . . . . . . Actions | -11 -10 -10 -9 -9 -9 -8 -8 -7 -7 -7 -7 -6 --------- Run | Jun Mat Min Mat Min Exi Min Mat Fac Low Low Dat Pro Total 10931 | 85 996 699 1406 555 248 736 1811 1261 1462 1402 80 190 Wait 1264 | 24 135 69 196 33 . 48 547 99 46 42 . 25 Move 8925 | 45 741 596 1098 504 245 654 1128 1083 1347 1269 80 135 Hop . | . . . . . . . . . . . . . Pick Up 109 | 10 22 2 16 2 1 7 17 14 3 13 . 2 Fast Attach 30 | . 4 3 1 . . . 12 5 1 . . 4 Attach 50 | 6 3 . 6 . . 2 5 4 . 21 . 3 Detach 13 | . 1 . . . . . 1 . . 9 . 2 Swap 103 | . 17 11 26 1 1 5 21 11 7 2 . 1 Drop 83 | . 16 7 15 1 1 5 19 16 2 . . 1 Fire 268 | . 57 11 33 8 . 15 57 29 17 24 . 17 Melee 48 | . . . 15 6 . . 4 . 7 16 . . Ram . | . . . . . . . . . . . . . Kick . | . . . . . . . . . . . . . Crush . | . . . . . . . . . . . . . Escape Stasis . | . . . . . . . . . . . . . Rewire 38 | . . . . . . . . . 32 6 . . Trap . | . . . . . . . . . . . . . Miscellaneous . | . . . . . . . . . . . . . Route ------- -11/Junkyard -10/Materials (discovered 4 exits: *Mat x3 / *Min) -10/Mines (discovered 2 exits: *Mat x2) -9/Materials (discovered 3 exits: *Mat x2 / *Min) -9/Mines (discovered 3 exits: *Mat x2 / *Exi) -9/Exiles -8/Mines (discovered 2 exits: *Mat x2) -8/Materials (discovered 3 exits: *Fac x3) -7/Factory (discovered 2 exits: [*Sto] / *Low) -7/Lower Caves -7/Lower Caves (discovered 2 exits: *Fac / *Dat) -7/Data Miner -6/Proximity Caves History --------- Turn | Location | Event 2 | -11/Junkyard | Met Revision 17 8 | -11/Junkyard | Discovered new exit (range 15) 84 | -11/Junkyard | Entered Materials 268 | -10/Materials | Identified exit to Mines 309 | -10/Materials | Build established: Mutant 375 | -10/Materials | Discovered new exit (range 16) 533 | -10/Materials | Repaired Imp. Aluminum Leg 622 | -10/Materials | Discovered new exit (range 5) 1167 | -10/Materials | Discovered new exit (range 12) 1388 | -10/Materials | Entered Mines 1581 | -10/Mines | Learned location of 1 exit from Materials 1733 | -10/Mines | Discovered new exit (range 7) 1745 | -10/Mines | Joined a pair of Derelicts in attacking an 0b10 outpost 1915 | -10/Mines | Learned location of Storage (-7) 1925 | -10/Mines | Received a Rocket Launcher from a helpful Derelict 2060 | -10/Mines | Build established: Scavenger-Mutant 2129 | -10/Mines | Discovered new exit (range 6) 2167 | -10/Mines | Excavation squad dispatched 2167 | -10/Mines | A large section of the Mines collapsed 2262 | -10/Mines | Entered Materials 2262 | -9/Materials | Evolved 2 slots: Utility x2 2263 | -9/Materials | Identified exit to Materials 2723 | -9/Materials | Identified exit to Mines 2817 | -9/Materials | Discovered exit to Materials (range 8) 4023 | -9/Materials | Entered Mines 4027 | -9/Mines | Met a Derelict bent on vengeance 4028 | -9/Mines | Discovered exit to Materials (range 8) 4105 | -9/Mines | Deemed a non-threat by the Exiles lab entrance 4105 | -9/Mines | Discovered new exit (range 5) 4152 | -9/Mines | Learned location of Zion (-6) 4269 | -9/Mines | A weapon hastily lodged in a ceiling crevice suddenly fell to the ground 4293 | -9/Mines | Discovered exit to Materials (range 7) 4453 | -9/Mines | Found a hidden stash of uninstalled traps 4622 | -9/Mines | Met a Derelict testing a Signal Generator 4631 | -9/Mines | Found Signal Generator 4693 | -9/Mines | Identified exit to Exiles 4699 | -9/Mines | Entered Exiles 4699 | -9/Exiles | Accompanied by 1 ally 4728 | -9/Exiles | Met 8R-AWN 4749 | -9/Exiles | Met EX-HEX 4787 | -9/Exiles | Met EX-BIN 4804 | -9/Exiles | Aligned with FarCom system 4805 | -9/Exiles | Given EX-Vault access code 4833 | -9/Exiles | Opened EX-Vault 4842 | -9/Exiles | Found Superbattery 4868 | -9/Exiles | Warned to stay clear of 0b10 Research branches 4905 | -9/Exiles | Met EX-DEC 4983 | -9/Exiles | Discovered new exit (range 12) 4994 | -9/Exiles | Identified exit to Mines 4996 | -9/Exiles | Left Exiles lab with Superbattery 4996 | -9/Exiles | Entered Mines 4996 | -8/Mines | Accompanied by 1 ally 5172 | -8/Mines | Discovered exit to Materials (range 6) 5239 | -8/Mines | Discovered exit to Materials (range 15) 5353 | -8/Mines | Build established: Scavenger-Assassin 5666 | -8/Mines | Build established: Assassin 5878 | -8/Mines | Entered Materials 5878 | -8/Materials | Accompanied by 1 ally 5878 | -8/Materials | Evolved 2 slots: Propulsion x2 5979 | -8/Materials | Garrison activated, responded to threat 6162 | -8/Materials | Repaired Med. Armor Plating 6190 | -8/Materials | Repaired Sensor Array 6212 | -8/Materials | Build established: Mutant 6737 | -8/Materials | Identified exit to Factory 6828 | -8/Materials | Build established: Scavenger-Mutant 7280 | -8/Materials | Build established: Mutant 7732 | -8/Materials | System corruption reached 10% 7740 | -8/Materials | Lost 3 parts (1p2n) 8011 | -8/Materials | Build established: Scavenger-Mutant 8029 | -8/Materials | Entered Factory 8029 | -7/Factory | Evolved 2 slots: Utility x2 8335 | -7/Factory | Discovered new exit (range 4) 8712 | -7/Factory | Discovered new exit (range 4) 8753 | -7/Factory | Identified exit to Lower Caves 8788 | -7/Factory | Build established: Mutant 9059 | -7/Factory | Cargo convoy interrupted 9575 | -7/Factory | Entered Lower Caves 9621 | -7/Lower Caves | Encountered a Warlord checkpoint 9963 | -7/Lower Caves | Attacked by a delusional Derelict stockpiling Unaware 10111 | -7/Lower Caves | Spotted B-75 Beast 10274 | -7/Lower Caves | Discovered new exit (range 6) 10287 | -7/Lower Caves | Identified exit to Lower Caves 10319 | -7/Lower Caves | Build established: Commander-Mutant 11357 | -7/Lower Caves | Entered another Lower Caves area 11357 | -7/Lower Caves | Accompanied by 3 allies 11371 | -7/Lower Caves | Discovered new exit (range 15) 11387 | -7/Lower Caves | Identified exit to Factory 11427 | -7/Lower Caves | Build established: Mutant 11561 | -7/Lower Caves | Spotted B-75 Beast 11584 | -7/Lower Caves | Attracted the attention of an 0b10 outpost 11629 | -7/Lower Caves | Destroyed B-75 Beast 11672 | -7/Lower Caves | Lost 6 parts (2n3u1w) 11709 | -7/Lower Caves | Core integrity fell below 50% 11741 | -7/Lower Caves | Core integrity fell below 20% 11762 | -7/Lower Caves | Lost 9 parts (2p4n1u2w) 11898 | -7/Lower Caves | Learned Factory emergency access door positions 12246 | -7/Lower Caves | Learned Factory security intel 12655 | -7/Lower Caves | Discovered new exit (range 7) 12664 | -7/Lower Caves | Identified exit to Data Miner 13391 | -7/Lower Caves | Encountered a Warlord checkpoint 13960 | -7/Lower Caves | Entered Data Miner 13960 | -7/Data Miner | Accompanied by 2 allies 13960 | -7/Data Miner | Discovered new exit (range 6) 13991 | -7/Data Miner | Met Data Miner 14039 | -7/Data Miner | Learned location of Section 7 (-2) 14039 | -7/Data Miner | Acquired the access code to Warlord's prototype stash 14055 | -7/Data Miner | Received God Mode back door access code from Data Miner 14087 | -7/Data Miner | Identified exit to Proximity Caves 14088 | -7/Data Miner | Entered Proximity Caves 14088 | -6/Proximity Caves | Accompanied by 2 allies 14295 | -6/Proximity Caves | Spotted B-75 Beast 14297 | -6/Proximity Caves | Escorted by Enhanced Grunt 14382 | -6/Proximity Caves | Destroyed by B-75 Beast with Heavy Plasma Cannon Last Messages --------------- 14336_ Enhanced Grunt destroyed. 14345_ Discarded System Shield. 14347_ HV Slug penetrates Wall. 14349_ B-75 Beast suffers critical hit (Destroy). 14349_ Destroyed Imp. Medium Treads. 14351_ HV Slug penetrates Wall. 14351_ HV Slug penetrates B-75 Beast. 14351_ B-75 Beast suffers critical hit (Destroy). 14351_ Destroyed Magnetic Acceleration Cannon. 14355_ HV Slug penetrates B-75 Beast. 14362_ HV Slug penetrates Abandoned Machinery. 14367_ HV Slug penetrates B-75 Beast. 14369_ B-75 Beast suffers critical hit (Destroy). 14373_ HV Slug penetrates B-75 Beast. 14373_ B-75 Beast suffers critical hit (Destroy). 14373_ Destroyed Rnf. Deuterium Engine. 14373_ HV Slug penetrates B-75 Beast. 14375_ B-75 Beast suffers critical hit (Destroy). 14379_ HV Slug penetrates B-75 Beast. 14379_ B-75 Beast suffers critical hit (Destroy). Map ----- +----------------------------------------------------+ | ?????????????????????????????????????????????????? | | ?????????????????????????????????????????????????? | | ?????????????????????????????????????????????????? | | ?????????????????????????????????????????????????? | | ?????????????????????????????????????????????????? | | ?????????????????????????????????????????????????? | | ?????????????????????????????????????????????????? | | ################?????????????????????????????????? | | #?????????????????????????????????? | | ##########????????????????????????? | | #????????????????????????? | | ?"""" """""" ####?????????????????????? | | ???"" """""" ####### ## ?????????????????????? | | ??""" """""" ##????# ## #?????????????????????? | | """"" """""" ##???# ## #?????????????????????? | | #???# ## #?????????????????????? | | """"" """""" ###### #???????###???????????? | | """"" """""" #### ##????? ????????????? | | """"" """""" #?# ###### #?????????????? | | """"" """""" #?# ### [ #?????????????? | | #?# #?# #?????????????? | | #?### #?# ####?????????????? | | #???## ##?# #????????????????? | | #### ##???##???## #????????????????? | | ???# ##?##;###### ########????????????? | | ??## ## ### @ #????????????? | | ??# ## ### #????????????? | | ??# ## #### ;; " #?????? | | ### ## ##?# ;#" """"" #????? | | % ####??## ;; " " #???? | | =! #?????## " """ "# ??? | | ### ##?????# " " "" "## ???? | | ??### ##??????# * "" #?? #???? | | ????# ##???????## %% ## #????? | | #???# #???????? ; #### ##????? | | #???# #??????? ;;% #????###?????? | | ##??# ##????? ;%%[ #### ###????????????? | | #### ##??# % BB ??# #??????????????? | | # #? BB% #?# ##??????????????? | | # % ; #?# ?????????????? | | ## ; ##? ????????????? | | ### ## ##?? ####?????????????? | | ##### ?####??? ###????????????????? | | ##??? ???????? ### ##??????????????????? | | #???## ?????????#???##???????????????????? | | ###????########??????????????????????????????????? | | ?????????????????????????????????????????????????? | | ?????????????????????????????????????????????????? | | ?????????????????????????????????????????????????? | | ?????????????????????????????????????????????????? | +----------------------------------------------------+ Best States ------------- Heat Dissipation 53 Energy Generation 18 Energy Capacity 1660 Matter Stores 300 Matter Capacity 300 Sight Range 20 Robot Scan Range 14 Terrain Scan Density 85 ECM Strength 2 Corruption Block 8 Armor Coverage 750 Resistance: EM 15 Propulsion Shielding 66 Phase Shifting 5 Evasion (%) 60 Targeting Accuracy 5 Recoil Reduction 2 Defensive Hacking 10 Item Schematics ----------------- Mni. Grenade Launcher | -7/Factory | Scanalyzed Carbon-fiber Leg | -7/Factory | Scanalyzed Hrd. Heavy Armor Plating | -7/Factory | Scanalyzed Coolant Injector | -7/Factory | Scanalyzed Power Maul | -7/Factory | Scanalyzed Combat Drone Bay | -7/Data Miner | Free Cld. Aerolev Unit | -7/Data Miner | Free Lgt. Regenerative Plating | -7/Data Miner | Free Thermal Defense Suite | -7/Data Miner | Free Force Rifle | -7/Data Miner | Free Imp. Kinecellerator | -7/Data Miner | Free Antigrav System | -7/Data Miner | Free Imp. Arc Projector | -7/Data Miner | Free Adv. Heat Sink | -7/Data Miner | Free Remote Force Field | -7/Data Miner | Free Imp. Coolant Injector | -7/Data Miner | Free HERF Cannon | -7/Data Miner | Free Robot Schematics ------------------ G-47 Trooper | -7/Data Miner | Free G-50 Soldier | -7/Data Miner | Free E-15 Imp | -7/Data Miner | Free I-36 Angel | -7/Data Miner | Free A-15 Conveyor | -7/Data Miner | Free Fabricated ------------ Nothing Alien Tech Used ----------------- None Achievements -------------- None Challenges ------------ None Game ------ Seed HugePhaseFemtoactuators Manual? 0 Play Time 03:06:44 Cumulative 121.2 hours Start 2023.05.29 @ 23:18:04 End 2023.05.30 @ 02:49:25 Sessions 1 Manual Loads 0 Difficulty Rogue Special Mode None Game No. 19 Rogue 17 Adventurer 0 Explorer 2 Win Type - Total 3 Types 0/0/0/3/0/0/0/0/0 Lore% 31 Gallery% 38 Achievement% 46 Wizard Run 0 Options --------- ASCII 1 Keyboard 0 Movement Mouse Keybinds 0 Fullscreen 1 Font 18/SmallcapsGlow Map View 70x50 Tactical HUD 1 Map Filters NONE Filters NONE Steam 1 RUN: 9fc6533d-004c-4db4-b331-02c7687ab438